[Event "*** Titled Tuesday Blitz"]
[Site "Chess.com"]
[Date "2020.05.05"]
[Round "9"]
[White "Tashik"]
[Black "XiaoKangZhong"]
[Result "0-1"]
[WhiteElo "2438"]
[BlackElo "2330"]
[TimeControl "180+1"]
[EndTime "11:48:21 PDT"]
[Termination "XiaoKangZhong won by resignation"]

1. c4 {[%clk 0:03:00.9]} 1... Nf6 {[%clk 0:02:58.1]} 2. Nc3 {[%clk 0:03:00.7]}
2... e5 {[%clk 0:02:57.6]} 3. Nf3 {[%clk 0:02:59.8]} 3... Nc6 {[%clk 0:02:57]}
4. e4 {[%clk 0:03:00.4]} 4... Bb4 {[%clk 0:02:49.4]} 5. d3 {[%clk 0:03:00.1]}
5... O-O {[%clk 0:02:49.3]} 6. a3 {[%clk 0:03:00.6]} 6... Be7 {[%clk 0:02:46.5]}
7. g3 {[%clk 0:02:59.3]} 7... d6 {[%clk 0:02:40.1]} 8. Bg2 {[%clk 0:02:59.7]}
8... Nd4 {[%clk 0:02:40.3]} 9. Nxd4 {[%clk 0:02:57.6]} 9... exd4 {[%clk
0:02:41.2]} 10. Ne2 {[%clk 0:02:58.2]} 10... c5 {[%clk 0:02:40.7]} 11. O-O
{[%clk 0:02:58.1]} 11... Rb8 {[%clk 0:02:37.8]} 12. b4 {[%clk 0:02:47.2]} 12...
b5 {[%clk 0:02:32.2]} 13. bxc5 {[%clk 0:02:46.5]} 13... dxc5 {[%clk 0:02:32.2]}
14. Bf4 {[%clk 0:02:46.6]} 14... Rb6 {[%clk 0:02:29.5]} 15. cxb5 {[%clk
0:02:42.3]} 15... Rxb5 {[%clk 0:02:28.9]} 16. Rb1 {[%clk 0:02:26.1]} 16... Qa5
{[%clk 0:02:23.3]} 17. Qc2 {[%clk 0:01:53.3]} 17... Ba6 {[%clk 0:02:17]} 18. e5
{[%clk 0:01:35.3]} 18... Nd7 {[%clk 0:01:58.2]} 19. Bc6 {[%clk 0:01:17.6]} 19...
Rxb1 {[%clk 0:01:53.1]} 20. Rxb1 {[%clk 0:01:18.5]} 20... Nb8 {[%clk 0:01:49.9]}
21. Be4 {[%clk 0:01:11.3]} 21... Nd7 {[%clk 0:01:33.3]} 22. Bb7 {[%clk
0:01:04.5]} 22... Qxa3 {[%clk 0:01:27]} 23. Bxa6 {[%clk 0:01:00]} 23... Qxa6
{[%clk 0:01:27.9]} 24. h4 {[%clk 0:00:49.6]} 24... Nb6 {[%clk 0:01:26.6]} 25.
Bg5 {[%clk 0:00:46.3]} 25... Bxg5 {[%clk 0:01:14.1]} 26. hxg5 {[%clk 0:00:47.2]}
26... Rc8 {[%clk 0:01:14]} 27. Nf4 {[%clk 0:00:47.1]} 27... Nd7 {[%clk 0:00:58]}
28. Qe2 {[%clk 0:00:41.7]} 28... Nf8 {[%clk 0:00:57.5]} 29. Qe4 {[%clk
0:00:39.7]} 29... Re8 {[%clk 0:00:44.3]} 30. Nd5 {[%clk 0:00:29.3]} 30... Qa2
{[%clk 0:00:34.1]} 31. Rb7 {[%clk 0:00:26.5]} 31... c4 {[%clk 0:00:30.5]} 32.
Qf4 {[%clk 0:00:20.3]} 32... Nd7 {[%clk 0:00:16.5]} 33. Rxd7 {[%clk 0:00:19.3]}
33... Rf8 {[%clk 0:00:16.6]} 34. e6 {[%clk 0:00:12.3]} 34... cxd3 {[%clk
0:00:08]} 35. Qxf7+ {[%clk 0:00:11.8]} 35... Rxf7 {[%clk 0:00:06.9]} 36. Ne7+
{[%clk 0:00:12.3]} 36... Kf8 {[%clk 0:00:06]} 37. Ng6+ {[%clk 0:00:09.8]} 37...
hxg6 {[%clk 0:00:04.4]} 38. Rxf7+ {[%clk 0:00:10.2]} 38... Kg8 {[%clk
0:00:03.7]} 39. Rd7 {[%clk 0:00:10]} 39... Qxe6 {[%clk 0:00:03.7]} 40. Rxd4
{[%clk 0:00:10.3]} 40... d2 {[%clk 0:00:03.7]} 41. Kg2 {[%clk 0:00:09.6]} 41...
Qe1 {[%clk 0:00:03.6]} 42. Rd8+ {[%clk 0:00:09.7]} 42... Kh7 {[%clk 0:00:03.7]}
43. Rd4 {[%clk 0:00:09.9]} 43... d1=Q {[%clk 0:00:04.1]} 44. Rh4+ {[%clk
0:00:10.2]} 44... Kg8 {[%clk 0:00:04.7]} 0-1

[Event "*** Titled Tuesday Blitz"]
[Site "Chess.com"]
[Date "2020.05.05"]
[Round "9"]
[White "Gromes7"]
[Black "davigator"]
[Result "1-0"]
[WhiteElo "2127"]
[BlackElo "2270"]
[TimeControl "180+1"]
[EndTime "11:48:21 PDT"]
[Termination "Gromes7 won by checkmate"]

1. d4 {[%clk 0:03:00.9]} 1... Nf6 {[%clk 0:02:59]} 2. g3 {[%clk 0:03:01.2]} 2...
b5 {[%clk 0:02:54]} 3. Bg2 {[%clk 0:03:01.1]} 3... d5 {[%clk 0:02:54.5]} 4. a4
{[%clk 0:02:58.2]} 4... b4 {[%clk 0:02:53.4]} 5. c3 {[%clk 0:02:57.6]} 5... bxc3
{[%clk 0:02:51.5]} 6. bxc3 {[%clk 0:02:56.4]} 6... e6 {[%clk 0:02:51.5]} 7. c4
{[%clk 0:02:56.4]} 7... Bb7 {[%clk 0:02:50.9]} 8. Nf3 {[%clk 0:02:46.4]} 8...
dxc4 {[%clk 0:02:47.7]} 9. O-O {[%clk 0:02:44.9]} 9... Bd6 {[%clk 0:02:45.4]}
10. Qc2 {[%clk 0:02:41.9]} 10... Bd5 {[%clk 0:02:43.1]} 11. Nc3 {[%clk
0:02:38.9]} 11... O-O {[%clk 0:02:40.7]} 12. e4 {[%clk 0:02:35.5]} 12... Bb7
{[%clk 0:02:40]} 13. e5 {[%clk 0:02:34.3]} 13... Be7 {[%clk 0:02:39.2]} 14. exf6
{[%clk 0:02:32.6]} 14... Bxf6 {[%clk 0:02:38.6]} 15. Be3 {[%clk 0:02:30.4]}
15... g6 {[%clk 0:02:37.7]} 16. Ne4 {[%clk 0:02:19.8]} 16... Bg7 {[%clk
0:02:35.4]} 17. Nfd2 {[%clk 0:02:12]} 17... Bd5 {[%clk 0:02:34.3]} 18. Nxc4
{[%clk 0:02:07.6]} 18... Nd7 {[%clk 0:02:34.8]} 19. Rfd1 {[%clk 0:01:52.3]}
19... c5 {[%clk 0:02:00.8]} 20. Rac1 {[%clk 0:01:47.5]} 20... Rc8 {[%clk
0:01:58.3]} 21. dxc5 {[%clk 0:01:43.5]} 21... Qe7 {[%clk 0:01:48.9]} 22. Ncd6
{[%clk 0:01:40.5]} 22... Rc6 {[%clk 0:01:47.8]} 23. Qe2 {[%clk 0:01:24.7]} 23...
Rb8 {[%clk 0:01:39.8]} 24. Nb5 {[%clk 0:01:14.9]} 24... Ne5 {[%clk 0:01:21.1]}
25. Nbc3 {[%clk 0:01:12.1]} 25... Bb3 {[%clk 0:01:18.4]} 26. Rd6 {[%clk
0:01:04.5]} 26... Rcc8 {[%clk 0:01:17.3]} 27. a5 {[%clk 0:01:01.9]} 27... Nc6
{[%clk 0:01:12.7]} 28. a6 {[%clk 0:00:57.5]} 28... f5 {[%clk 0:01:02.1]} 29. Nd2
{[%clk 0:00:51.5]} 29... Na5 {[%clk 0:00:51.5]} 30. Nxb3 {[%clk 0:00:46.1]}
30... Nxb3 {[%clk 0:00:50.7]} 31. Rc2 {[%clk 0:00:42.8]} 31... Nxc5 {[%clk
0:00:50.1]} 32. Bxc5 {[%clk 0:00:37.6]} 32... Rxc5 {[%clk 0:00:49]} 33. Rd3
{[%clk 0:00:35.1]} 33... Rbc8 {[%clk 0:00:44.7]} 34. Bb7 {[%clk 0:00:31.1]}
34... R8c7 {[%clk 0:00:31.8]} 35. h4 {[%clk 0:00:17.7]} 35... Kf7 {[%clk
0:00:31]} 36. Kg2 {[%clk 0:00:15.4]} 36... Rxc3 {[%clk 0:00:24.6]} 37. Rdxc3
{[%clk 0:00:14.7]} 37... Rxc3 {[%clk 0:00:25.1]} 38. Rxc3 {[%clk 0:00:14.7]}
38... Bxc3 {[%clk 0:00:25.6]} 39. Qf3 {[%clk 0:00:13.7]} 39... Bd4 {[%clk
0:00:24.8]} 40. h5 {[%clk 0:00:13.4]} 40... g5 {[%clk 0:00:23.7]} 41. Qc6 {[%clk
0:00:13.4]} 41... g4 {[%clk 0:00:21]} 42. Bc8 {[%clk 0:00:13.3]} 42... Kf6
{[%clk 0:00:20.6]} 43. Qb7 {[%clk 0:00:12.5]} 43... Qd6 {[%clk 0:00:17.2]} 44.
Qxh7 {[%clk 0:00:11.1]} 44... Qd5+ {[%clk 0:00:16.9]} 45. Kg1 {[%clk 0:00:10.6]}
45... Bxf2+ {[%clk 0:00:16.4]} 46. Kxf2 {[%clk 0:00:10.3]} 46... Qf3+ {[%clk
0:00:16.8]} 47. Ke1 {[%clk 0:00:10.3]} 47... Qxg3+ {[%clk 0:00:17]} 48. Kd2
{[%clk 0:00:10.6]} 48... Qf4+ {[%clk 0:00:16.2]} 49. Kc3 {[%clk 0:00:10.5]}
49... g3 {[%clk 0:00:16.8]} 50. Qg6+ {[%clk 0:00:10.1]} 50... Ke5 {[%clk
0:00:16.4]} 51. Qxe6# {[%clk 0:00:10.5]} 1-0

[Event "*** Titled Tuesday Blitz"]
[Site "Chess.com"]
[Date "2020.05.05"]
[Round "9"]
[White "RaphaeI"]
[Black "Poghosyan_Suren"]
[Result "0-1"]
[WhiteElo "2628"]
[BlackElo "2505"]
[TimeControl "180+1"]
[EndTime "11:48:25 PDT"]
[Termination "Poghosyan_Suren won on time"]

1. c4 {[%clk 0:03:00.9]} 1... c5 {[%clk 0:02:55.6]} 2. Nf3 {[%clk 0:03:00.2]}
2... Nc6 {[%clk 0:02:54.8]} 3. Nc3 {[%clk 0:03:00.4]} 3... g6 {[%clk 0:02:53.8]}
4. e3 {[%clk 0:03:00.2]} 4... Bg7 {[%clk 0:02:52.6]} 5. d4 {[%clk 0:03:00.1]}
5... d6 {[%clk 0:02:47]} 6. d5 {[%clk 0:02:57.7]} 6... Nb8 {[%clk 0:02:46.2]} 7.
h3 {[%clk 0:02:49.3]} 7... Nf6 {[%clk 0:02:47.1]} 8. e4 {[%clk 0:02:48]} 8...
O-O {[%clk 0:02:46.8]} 9. Bd3 {[%clk 0:02:47.6]} 9... a6 {[%clk 0:02:46.6]} 10.
a4 {[%clk 0:02:46.8]} 10... e6 {[%clk 0:02:46.5]} 11. O-O {[%clk 0:02:45.4]}
11... exd5 {[%clk 0:02:46.8]} 12. cxd5 {[%clk 0:02:45.1]} 12... Re8 {[%clk
0:02:44.6]} 13. Bf4 {[%clk 0:02:43.9]} 13... Qc7 {[%clk 0:02:39.8]} 14. Rc1
{[%clk 0:02:37.6]} 14... Nbd7 {[%clk 0:02:33.6]} 15. b4 {[%clk 0:02:26.7]} 15...
b6 {[%clk 0:02:19.6]} 16. Re1 {[%clk 0:02:17]} 16... Nh5 {[%clk 0:02:14.2]} 17.
Bh2 {[%clk 0:02:13.5]} 17... Ne5 {[%clk 0:02:13.5]} 18. bxc5 {[%clk 0:01:45.9]}
18... bxc5 {[%clk 0:02:10.4]} 19. Be2 {[%clk 0:01:45.6]} 19... Qa5 {[%clk
0:01:35.3]} 20. Nxe5 {[%clk 0:01:15.5]} 20... Bxe5 {[%clk 0:01:34.6]} 21. Bxe5
{[%clk 0:01:15.7]} 21... Rxe5 {[%clk 0:01:35.5]} 22. Bxh5 {[%clk 0:01:15.7]}
22... Rxh5 {[%clk 0:01:36.1]} 23. f4 {[%clk 0:01:13]} 23... Qb4 {[%clk 0:01:17]}
24. Qf3 {[%clk 0:01:13]} 24... Bd7 {[%clk 0:00:52.9]} 25. Kh2 {[%clk 0:01:03.9]}
25... Re8 {[%clk 0:00:50.2]} 26. f5 {[%clk 0:01:00.8]} 26... Qd4 {[%clk
0:00:47.9]} 27. g4 {[%clk 0:00:55.6]} 27... Qe5+ {[%clk 0:00:46]} 28. Qg3 {[%clk
0:00:52.7]} 28... Rh6 {[%clk 0:00:38.3]} 29. Rb1 {[%clk 0:00:48.1]} 29... Qd4
{[%clk 0:00:35.5]} 30. Qe3 {[%clk 0:00:19.6]} 30... Qe5+ {[%clk 0:00:34.3]} 31.
Qg3 {[%clk 0:00:18.7]} 31... Qd4 {[%clk 0:00:34.3]} 32. Red1 {[%clk 0:00:18]}
32... Qc4 {[%clk 0:00:27.9]} 33. Rbc1 {[%clk 0:00:15.1]} 33... g5 {[%clk
0:00:25.9]} 34. Qe3 {[%clk 0:00:11.5]} 34... f6 {[%clk 0:00:24.6]} 35. Ra1
{[%clk 0:00:08.4]} 35... Rb8 {[%clk 0:00:22.3]} 36. Rdb1 {[%clk 0:00:07.5]}
36... Rb3 {[%clk 0:00:19.5]} 37. Rxb3 {[%clk 0:00:06.9]} 37... Qxb3 {[%clk
0:00:20.4]} 38. Rb1 {[%clk 0:00:07.5]} 38... Qc2+ {[%clk 0:00:20.5]} 39. Kg3
{[%clk 0:00:07.7]} 39... Rh4 {[%clk 0:00:12.8]} 40. Rb8+ {[%clk 0:00:07]} 40...
Kf7 {[%clk 0:00:12.9]} 41. Rb7 {[%clk 0:00:07.9]} 41... Ke7 {[%clk 0:00:13.3]}
42. Ne2 {[%clk 0:00:06.3]} 42... h5 {[%clk 0:00:11.9]} 43. gxh5 {[%clk
0:00:03.5]} 43... Rxe4 {[%clk 0:00:09.6]} 0-1

[Event "*** Titled Tuesday Blitz"]
[Site "Chess.com"]
[Date "2020.05.05"]
[Round "9"]
[White "mbachez"]
[Black "lamomiablanca"]
[Result "0-1"]
[WhiteElo "2434"]
[BlackElo "2178"]
[TimeControl "180+1"]
[EndTime "11:48:27 PDT"]
[Termination "lamomiablanca won by resignation"]

1. e4 {[%clk 0:03:00.9]} 1... c5 {[%clk 0:02:58.9]} 2. Nf3 {[%clk 0:03:00.1]}
2... Nc6 {[%clk 0:02:57.9]} 3. Bb5 {[%clk 0:02:59.9]} 3... g6 {[%clk 0:02:56.9]}
4. c3 {[%clk 0:02:59.4]} 4... Nf6 {[%clk 0:02:54.2]} 5. Qe2 {[%clk 0:02:52.3]}
5... Bg7 {[%clk 0:02:53.4]} 6. O-O {[%clk 0:02:51.8]} 6... O-O {[%clk
0:02:52.8]} 7. h3 {[%clk 0:02:50.4]} 7... e5 {[%clk 0:02:34.8]} 8. Na3 {[%clk
0:02:45.8]} 8... d6 {[%clk 0:02:33.2]} 9. Rd1 {[%clk 0:02:39.1]} 9... Qc7 {[%clk
0:02:18.9]} 10. d3 {[%clk 0:02:35.5]} 10... a6 {[%clk 0:02:17.4]} 11. Ba4 {[%clk
0:02:35.4]} 11... b5 {[%clk 0:02:17]} 12. Bb3 {[%clk 0:02:35.4]} 12... h6 {[%clk
0:02:14.4]} 13. Nh4 {[%clk 0:02:34.1]} 13... Kh7 {[%clk 0:02:13]} 14. Nc2 {[%clk
0:02:32.6]} 14... Na5 {[%clk 0:02:10.5]} 15. Ne3 {[%clk 0:02:32.6]} 15... Nxb3
{[%clk 0:02:10.5]} 16. axb3 {[%clk 0:02:32.9]} 16... Be6 {[%clk 0:02:09.9]} 17.
c4 {[%clk 0:02:33.2]} 17... b4 {[%clk 0:01:58.9]} 18. Bd2 {[%clk 0:02:26.2]}
18... a5 {[%clk 0:01:58]} 19. Kh2 {[%clk 0:02:20.6]} 19... Qc6 {[%clk
0:01:49.7]} 20. Nd5 {[%clk 0:02:19.8]} 20... a4 {[%clk 0:01:31.5]} 21. bxa4
{[%clk 0:02:17.2]} 21... Rxa4 {[%clk 0:01:28.1]} 22. Qe3 {[%clk 0:02:16]} 22...
Bxd5 {[%clk 0:01:17.9]} 23. exd5 {[%clk 0:02:11.1]} 23... Qd7 {[%clk 0:01:16.9]}
24. f4 {[%clk 0:02:03.7]} 24... Rxa1 {[%clk 0:01:14.5]} 25. Rxa1 {[%clk
0:02:01.1]} 25... exf4 {[%clk 0:01:12.4]} 26. Qxf4 {[%clk 0:01:51.3]} 26... Nxd5
{[%clk 0:01:09.9]} 27. Qf3 {[%clk 0:01:48.2]} 27... Ne7 {[%clk 0:00:57.1]} 28.
Bc1 {[%clk 0:01:22.9]} 28... Qe6 {[%clk 0:00:50.3]} 29. Qf1 {[%clk 0:01:06.8]}
29... Nf5 {[%clk 0:00:41.8]} 30. Nf3 {[%clk 0:01:01.3]} 30... Nd4 {[%clk
0:00:37]} 31. Ra6 {[%clk 0:00:49.1]} 31... Nxf3+ {[%clk 0:00:34.7]} 32. Qxf3
{[%clk 0:00:49]} 32... Qe5+ {[%clk 0:00:32]} 33. Bf4 {[%clk 0:00:48.7]} 33...
Qxb2 {[%clk 0:00:25.7]} 34. Bxd6 {[%clk 0:00:48.4]} 34... Be5+ {[%clk
0:00:24.5]} 35. Bxe5 {[%clk 0:00:45.7]} 35... Qxe5+ {[%clk 0:00:25.4]} 36. Qg3
{[%clk 0:00:45.6]} 36... Qxg3+ {[%clk 0:00:21.8]} 37. Kxg3 {[%clk 0:00:45.4]}
37... Rd8 {[%clk 0:00:22.5]} 38. Rc6 {[%clk 0:00:40.9]} 38... Rxd3+ {[%clk
0:00:21.9]} 39. Kh2 {[%clk 0:00:40.6]} 39... Rc3 {[%clk 0:00:19.9]} 40. Rxc5
{[%clk 0:00:40.8]} 40... b3 {[%clk 0:00:19.9]} 41. Rb5 {[%clk 0:00:40.6]} 41...
Kg7 {[%clk 0:00:20.2]} 42. c5 {[%clk 0:00:40.3]} 42... Kf6 {[%clk 0:00:19.6]}
43. c6 {[%clk 0:00:40.3]} 43... Ke6 {[%clk 0:00:19.7]} 44. Rb7 {[%clk
0:00:40.3]} 44... Kd6 {[%clk 0:00:17.8]} 45. Rxf7 {[%clk 0:00:39.9]} 45... Rxc6
{[%clk 0:00:16]} 46. Rb7 {[%clk 0:00:38.8]} 46... Rc3 {[%clk 0:00:15.1]} 47.
Rb6+ {[%clk 0:00:34.9]} 47... Kc5 {[%clk 0:00:14.6]} 48. Rb8 {[%clk 0:00:30]}
48... Kc4 {[%clk 0:00:14.5]} 49. h4 {[%clk 0:00:28.8]} 49... Rc2 {[%clk
0:00:13.9]} 50. Kg3 {[%clk 0:00:24.6]} 50... b2 {[%clk 0:00:13.3]} 51. Kf3
{[%clk 0:00:23.2]} 51... Rc3+ {[%clk 0:00:13.1]} 0-1

[Event "*** Titled Tuesday Blitz"]
[Site "Chess.com"]
[Date "2020.05.05"]
[Round "9"]
[White "chessdjw"]
[Black "MilanovicDan"]
[Result "0-1"]
[WhiteElo "2652"]
[BlackElo "2531"]
[TimeControl "180+1"]
[EndTime "11:48:28 PDT"]
[Termination "MilanovicDan won on time"]

1. e4 {[%clk 0:03:00.9]} 1... d5 {[%clk 0:02:54.4]} 2. exd5 {[%clk 0:02:59.7]}
2... Qxd5 {[%clk 0:02:54.2]} 3. Nc3 {[%clk 0:03:00.6]} 3... Qd6 {[%clk
0:02:54.3]} 4. Nf3 {[%clk 0:03:00.4]} 4... Nf6 {[%clk 0:02:54.6]} 5. d4 {[%clk
0:03:00.4]} 5... c6 {[%clk 0:02:54.4]} 6. g3 {[%clk 0:02:57]} 6... Bf5 {[%clk
0:02:53.4]} 7. Bg2 {[%clk 0:02:56.8]} 7... e6 {[%clk 0:02:53.4]} 8. O-O {[%clk
0:02:57.4]} 8... h6 {[%clk 0:02:53.6]} 9. Bf4 {[%clk 0:02:54]} 9... Qd8 {[%clk
0:02:53.3]} 10. Re1 {[%clk 0:02:47.9]} 10... Be7 {[%clk 0:02:53.2]} 11. Na4
{[%clk 0:02:44.8]} 11... Nbd7 {[%clk 0:02:45.5]} 12. c4 {[%clk 0:02:44.7]} 12...
O-O {[%clk 0:02:45.2]} 13. Nc3 {[%clk 0:02:39.4]} 13... a5 {[%clk 0:02:41.4]}
14. h3 {[%clk 0:02:34.7]} 14... Qb6 {[%clk 0:02:40.4]} 15. b3 {[%clk 0:02:30.2]}
15... Rfe8 {[%clk 0:02:35.4]} 16. c5 {[%clk 0:02:14.5]} 16... Qd8 {[%clk
0:02:27.6]} 17. Rc1 {[%clk 0:02:13.8]} 17... Nd5 {[%clk 0:02:17.3]} 18. Nxd5
{[%clk 0:02:13.3]} 18... exd5 {[%clk 0:02:17]} 19. Ne5 {[%clk 0:02:00.7]} 19...
Nxe5 {[%clk 0:01:57]} 20. Rxe5 {[%clk 0:02:01.6]} 20... Qd7 {[%clk 0:01:52.3]}
21. Qd2 {[%clk 0:01:55.1]} 21... Bf6 {[%clk 0:01:33.8]} 22. Rxe8+ {[%clk
0:01:53.5]} 22... Rxe8 {[%clk 0:01:33.7]} 23. Kh2 {[%clk 0:01:42]} 23... Be4
{[%clk 0:01:31]} 24. Re1 {[%clk 0:01:22.8]} 24... Bxg2 {[%clk 0:01:25]} 25. Kxg2
{[%clk 0:01:19.1]} 25... Rxe1 {[%clk 0:01:23.3]} 26. Qxe1 {[%clk 0:01:20]} 26...
Bxd4 {[%clk 0:01:23]} 27. Qxa5 {[%clk 0:01:20.6]} 27... Qe7 {[%clk 0:01:22.9]}
28. Be3 {[%clk 0:00:48.5]} 28... Bxe3 {[%clk 0:01:10.5]} 29. fxe3 {[%clk
0:00:49.4]} 29... Qxe3 {[%clk 0:01:06.6]} 30. Qa8+ {[%clk 0:00:48.9]} 30... Kh7
{[%clk 0:01:06.7]} 31. Qxb7 {[%clk 0:00:49.8]} 31... d4 {[%clk 0:01:06.5]} 32.
Qxf7 {[%clk 0:00:41.7]} 32... d3 {[%clk 0:01:00.6]} 33. Qf5+ {[%clk 0:00:40.2]}
33... Kg8 {[%clk 0:00:59.5]} 34. Qc8+ {[%clk 0:00:40.5]} 34... Kf7 {[%clk
0:00:57.4]} 35. Qd7+ {[%clk 0:00:40.2]} 35... Kf6 {[%clk 0:00:53.8]} 36. Qd6+
{[%clk 0:00:36]} 36... Kf5 {[%clk 0:00:53.4]} 37. Qd7+ {[%clk 0:00:11.8]} 37...
Ke4 {[%clk 0:00:20.7]} 38. Qxc6+ {[%clk 0:00:09.6]} 38... Kd4 {[%clk 0:00:19.9]}
39. Qd7+ {[%clk 0:00:07.8]} 39... Kc3 {[%clk 0:00:19.3]} 40. Qxg7+ {[%clk
0:00:07.7]} 40... Kc2 {[%clk 0:00:18.6]} 41. Qg6 {[%clk 0:00:06.7]} 41... Kb2
{[%clk 0:00:15.2]} 42. Qf6+ {[%clk 0:00:06.1]} 42... Kc1 {[%clk 0:00:14.6]} 43.
c6 {[%clk 0:00:05.2]} 43... d2 {[%clk 0:00:13]} 44. c7 {[%clk 0:00:05.6]} 44...
Qc5 {[%clk 0:00:12.2]} 45. Qf5 {[%clk 0:00:02.8]} 45... Qxf5 {[%clk 0:00:10.7]}
0-1

[Event "*** Titled Tuesday Blitz"]
[Site "Chess.com"]
[Date "2020.05.05"]
[Round "9"]
[White "cstevens1"]
[Black "PlayChessSimple"]
[Result "0-1"]
[WhiteElo "2603"]
[BlackElo "2499"]
[TimeControl "180+1"]
[EndTime "11:48:30 PDT"]
[Termination "PlayChessSimple won on time"]

1. e4 {[%clk 0:03:00.9]} 1... e6 {[%clk 0:03:00]} 2. d4 {[%clk 0:02:58.5]} 2...
d5 {[%clk 0:03:00.3]} 3. e5 {[%clk 0:02:58.7]} 3... c5 {[%clk 0:02:56.8]} 4. c3
{[%clk 0:02:58.9]} 4... Nc6 {[%clk 0:02:57]} 5. Nf3 {[%clk 0:02:58.8]} 5... Bd7
{[%clk 0:02:56.9]} 6. a3 {[%clk 0:02:34.4]} 6... c4 {[%clk 0:02:56.5]} 7. Nbd2
{[%clk 0:02:33.7]} 7... Na5 {[%clk 0:02:56.5]} 8. g3 {[%clk 0:02:31.2]} 8... Bc6
{[%clk 0:02:53.8]} 9. Bh3 {[%clk 0:02:31.2]} 9... Qd7 {[%clk 0:02:53.9]} 10. O-O
{[%clk 0:02:30.6]} 10... Ba4 {[%clk 0:02:53.3]} 11. Qe2 {[%clk 0:02:31.1]} 11...
Ne7 {[%clk 0:02:42.2]} 12. Re1 {[%clk 0:02:26.9]} 12... h6 {[%clk 0:02:38]} 13.
Nf1 {[%clk 0:02:23.3]} 13... O-O-O {[%clk 0:02:35.8]} 14. Ne3 {[%clk 0:02:16.8]}
14... Nec6 {[%clk 0:02:31.1]} 15. Nd2 {[%clk 0:02:09.3]} 15... Be7 {[%clk
0:02:19.9]} 16. f4 {[%clk 0:02:08.8]} 16... g6 {[%clk 0:02:18.8]} 17. Rf1 {[%clk
0:02:07.5]} 17... h5 {[%clk 0:02:18]} 18. Nf3 {[%clk 0:02:03.8]} 18... Nb3
{[%clk 0:02:14.6]} 19. Rb1 {[%clk 0:02:03.1]} 19... Nxc1 {[%clk 0:02:14.5]} 20.
Rbxc1 {[%clk 0:02:02.2]} 20... Na5 {[%clk 0:02:13.7]} 21. Rce1 {[%clk
0:02:01.6]} 21... Kb8 {[%clk 0:02:11.9]} 22. Ng5 {[%clk 0:02:01.2]} 22... Rhf8
{[%clk 0:02:02.3]} 23. Nh7 {[%clk 0:01:55.5]} 23... Rh8 {[%clk 0:02:00.1]} 24.
Nf6 {[%clk 0:01:55.4]} 24... Qc6 {[%clk 0:01:48.1]} 25. Ng2 {[%clk 0:01:54.5]}
25... Nb3 {[%clk 0:01:36.6]} 26. Nh4 {[%clk 0:01:53.1]} 26... b5 {[%clk
0:01:30.4]} 27. Nf3 {[%clk 0:01:52.6]} 27... Qb7 {[%clk 0:01:09.7]} 28. Ng5
{[%clk 0:01:50.6]} 28... Rhf8 {[%clk 0:01:04.8]} 29. Nfh7 {[%clk 0:01:38.5]}
29... Rh8 {[%clk 0:01:04.6]} 30. Nxf7 {[%clk 0:01:37.7]} 30... Rxh7 {[%clk
0:01:04]} 31. Nxd8 {[%clk 0:01:38.1]} 31... Bxd8 {[%clk 0:01:04.3]} 32. Bxe6
{[%clk 0:01:38.5]} 32... Re7 {[%clk 0:01:00.5]} 33. Bh3 {[%clk 0:01:23]} 33...
a5 {[%clk 0:00:57.8]} 34. Bg2 {[%clk 0:01:22.1]} 34... b4 {[%clk 0:00:54.3]} 35.
axb4 {[%clk 0:01:21.8]} 35... axb4 {[%clk 0:00:54.1]} 36. f5 {[%clk 0:01:17.8]}
36... gxf5 {[%clk 0:00:52.2]} 37. Qxh5 {[%clk 0:01:17.4]} 37... Ba5 {[%clk
0:00:44.1]} 38. Re3 {[%clk 0:00:56.5]} 38... bxc3 {[%clk 0:00:42.7]} 39. bxc3
{[%clk 0:00:57.4]} 39... Nd2 {[%clk 0:00:42.8]} 40. Ra1 {[%clk 0:00:48]} 40...
Qb3 {[%clk 0:00:24.5]} 41. Qxf5 {[%clk 0:00:44.7]} 41... Bxc3 {[%clk 0:00:21.7]}
42. Qf8+ {[%clk 0:00:40.3]} 42... Re8 {[%clk 0:00:21.9]} 43. Qd6+ {[%clk
0:00:40.4]} 43... Kc8 {[%clk 0:00:21.3]} 44. Qxd5 {[%clk 0:00:18.9]} 44... Qb2
{[%clk 0:00:12.3]} 45. Rae1 {[%clk 0:00:05]} 45... Bxd4 {[%clk 0:00:11.3]} 0-1

[Event "*** Titled Tuesday Blitz"]
[Site "Chess.com"]
[Date "2020.05.05"]
[Round "9"]
[White "Sweafty"]
[Black "Kingsman132"]
[Result "1-0"]
[WhiteElo "2515"]
[BlackElo "2370"]
[TimeControl "180+1"]
[EndTime "11:48:31 PDT"]
[Termination "Sweafty won on time"]

1. Nf3 {[%clk 0:03:00.9]} 1... d5 {[%clk 0:02:53]} 2. c4 {[%clk 0:03:00.6]} 2...
c6 {[%clk 0:02:45.4]} 3. g3 {[%clk 0:03:00.4]} 3... Nf6 {[%clk 0:02:33.1]} 4.
Bg2 {[%clk 0:02:59.4]} 4... dxc4 {[%clk 0:02:27.1]} 5. O-O {[%clk 0:02:57]} 5...
e6 {[%clk 0:02:23.6]} 6. a4 {[%clk 0:02:56.3]} 6... Nbd7 {[%clk 0:02:16.7]} 7.
Qc2 {[%clk 0:02:54.5]} 7... Nc5 {[%clk 0:02:08.2]} 8. Qxc4 {[%clk 0:02:50.6]}
8... Be7 {[%clk 0:02:03.9]} 9. d4 {[%clk 0:02:40.7]} 9... Ncd7 {[%clk
0:01:53.8]} 10. Nc3 {[%clk 0:02:39.3]} 10... a5 {[%clk 0:01:48.8]} 11. e4 {[%clk
0:02:37.1]} 11... O-O {[%clk 0:01:44]} 12. Bf4 {[%clk 0:02:30.6]} 12... b6
{[%clk 0:01:33.3]} 13. Rfd1 {[%clk 0:01:44.2]} 13... Bb4 {[%clk 0:01:21.3]} 14.
Qe2 {[%clk 0:01:31.4]} 14... Ba6 {[%clk 0:01:18.7]} 15. Qc2 {[%clk 0:01:31.6]}
15... h6 {[%clk 0:01:15.1]} 16. Ne5 {[%clk 0:01:28.6]} 16... Nxe5 {[%clk
0:01:12.5]} 17. dxe5 {[%clk 0:01:22.4]} 17... Nd7 {[%clk 0:01:10.1]} 18. Na2
{[%clk 0:01:22.4]} 18... Bc5 {[%clk 0:01:06.7]} 19. Nc1 {[%clk 0:01:16.7]} 19...
Qc7 {[%clk 0:01:00.7]} 20. Nd3 {[%clk 0:01:16.1]} 20... Be7 {[%clk 0:00:54.4]}
21. Rac1 {[%clk 0:01:15.6]} 21... c5 {[%clk 0:00:51.1]} 22. Qc3 {[%clk
0:00:56.6]} 22... Rfd8 {[%clk 0:00:45.8]} 23. b3 {[%clk 0:00:55.9]} 23... Nb8
{[%clk 0:00:42]} 24. Nb2 {[%clk 0:00:54.1]} 24... Nc6 {[%clk 0:00:39.3]} 25. Nc4
{[%clk 0:00:54.3]} 25... Bxc4 {[%clk 0:00:36.6]} 26. Qxc4 {[%clk 0:00:54.4]}
26... Rxd1+ {[%clk 0:00:33.4]} 27. Rxd1 {[%clk 0:00:54.3]} 27... Rd8 {[%clk
0:00:32.4]} 28. Rc1 {[%clk 0:00:34.8]} 28... Rd4 {[%clk 0:00:26.7]} 29. Qa6
{[%clk 0:00:31.8]} 29... Bg5 {[%clk 0:00:22.3]} 30. Bxg5 {[%clk 0:00:28.3]}
30... hxg5 {[%clk 0:00:23.2]} 31. f4 {[%clk 0:00:25]} 31... gxf4 {[%clk
0:00:18.7]} 32. gxf4 {[%clk 0:00:25.9]} 32... Qd8 {[%clk 0:00:16.8]} 33. Qe2
{[%clk 0:00:17.1]} 33... Rd2 {[%clk 0:00:14.7]} 34. Qg4 {[%clk 0:00:17.1]} 34...
Qd4+ {[%clk 0:00:11.9]} 35. Kh1 {[%clk 0:00:16.8]} 35... Nb4 {[%clk 0:00:10.2]}
36. Rf1 {[%clk 0:00:15.8]} 36... Nd3 {[%clk 0:00:08]} 37. h3 {[%clk 0:00:07.7]}
37... Nf2+ {[%clk 0:00:06.7]} 38. Rxf2 {[%clk 0:00:08.3]} 38... Rxf2 {[%clk
0:00:03.4]} 39. Qg5 {[%clk 0:00:09.2]} 39... Qd1+ {[%clk 0:00:03]} 40. Kh2
{[%clk 0:00:09.5]} 40... Qd2 {[%clk 0:00:03.1]} 41. Kg1 {[%clk 0:00:04.2]} 41...
Qe1+ {[%clk 0:00:02.4]} 42. Kh2 {[%clk 0:00:04.4]} 42... Qxe4 {[%clk 0:00:01.5]}
43. Qd8+ {[%clk 0:00:03.4]} 43... Kh7 {[%clk 0:00:01.2]} 44. Qg5 {[%clk
0:00:04.3]} 1-0